bitfinex/quotes_SOLUSD_20260311
["timestamp","ask_amount","ask_price","bid_price","bid_amount"]
[1773223133201,11.78503885,84.854,84.821,41.26336638]
[1773223134790,11.78425387,84.859,84.83,3.41828401]
[1773223135598,11.78286535,84.869,84.84,3.41828401]
[1773223138086,11.78286535,84.869,84.81,2.14]
[1773223138087,11.78286535,84.869,84.83,3.41828401]
[1773223138286,33.77818554,84.868,84.83,3.41828401]
[1773223139313,11.78314303,84.867,84.84,3.41828401]
[1773223139807,41.24100061,84.867,84.84,3.41828401]
[1773223140311,11.78314303,84.867,84.84,3.41828401]
[1773223141400,11.78314303,84.867,84.841,11.78675404]
[1773223143812,29.45496759,84.876,84.841,11.78675404]
[1773223144108,29.45496759,84.876,84.85,3.41828401]
[1773223144315,29.45496759,84.876,84.841,11.78675404]
[1773223146813,29.45496759,84.876,84.85,3.41828401]
[1773223147138,11.78147716,84.879,84.85,3.41828401]
[1773223151914,3.41828401,84.87,84.844,11.78624223]
[1773223153030,33.77818554,84.878,84.844,11.78624223]
[1773223153234,3.41828401,84.87,84.844,11.78624223]
[1773223154432,11.78286535,84.869,84.844,11.78624223]
[1773223155631,3.41828401,84.87,84.844,11.78624223]
[1773223157528,11.78175477,84.877,84.844,11.78624223]
[1773223157720,3.41828401,84.87,84.844,11.78624223]
[1773223159438,11.78175477,84.877,84.844,11.78624223]
[1773223161246,11.78175477,84.877,84.841,41.25363915]
[1773223162823,11.78175477,84.877,84.84,3.41828401]
[1773223164442,3.41828401,84.87,84.84,3.41828401]
[1773223165147,11.78175477,84.877,84.841,11.78675404]
[1773223165351,3.41828401,84.87,84.841,11.78675404]
[1773223167454,29.45438693,84.877,84.841,11.78675404]
[1773223167763,11.78241381,84.873,84.841,11.78675404]
[1773223169664,11.78207251,84.875,84.841,41.25363915]
[1773223170039,11.78207251,84.875,84.85,3.41828401]
[1773223171352,33.77818554,84.878,84.85,3.41828401]
[1773223171541,45.55993103,84.878,84.85,3.41828401]
[1773223171742,11.78119635,84.882,84.851,41.24877726]
[1773223173258,11.78008929,84.889,84.851,41.24877726]
[1773223173837,3.41828401,84.88,84.84,3.41828401]
[1773223174039,3.41828401,84.87,84.84,3.41828401]
[1773223175563,11.78286535,84.869,84.83,3.41501462]
[1773223176064,11.78286535,84.869,84.84,3.41501462]
[1773223176258,3.41501462,84.89,84.85,3.41501462]
[1773223176453,3.41501462,84.88,84.85,3.41501462]
[1773223176664,3.41501462,84.88,84.84,3.41501462]
[1773223177862,11.78147716,84.879,84.841,11.78675404]
[1773223178244,41.23517006,84.879,84.841,11.78675404]
[1773223179064,41.23517006,84.879,84.841,41.25363915]
[1773223180155,41.23517006,84.879,84.85,3.41501462]
[1773223180362,11.78147716,84.879,84.85,3.41501462]
[1773223181057,11.78022806,84.888,84.85,3.41501462]
[1773223181455,11.77884049,84.898,84.87,3.41501462]
[1773223182861,11.77884049,84.898,84.871,11.78258769]
[1773223183071,11.77884049,84.898,84.866,11.78327051]
[1773223183264,11.77884049,84.898,84.87,3.41501462]
[1773223185366,11.77884049,84.898,84.871,11.78258769]
[1773223185861,0.2,84.9,84.871,11.78258769]
[1773223186068,11.97859,84.9,84.871,11.78258769]
[1773223186850,0.2,84.9,84.88,3.41501462]
[1773223187365,0.2,84.9,84.871,41.23905691]
[1773223187366,0.2,84.9,84.89,3.41501462]
[1773223187565,0.2,84.9,84.891,11.77981175]
[1773223187862,2.47215037,102.43,84.891,41.22934114]
[1773223187863,0.2,84.96,84.891,41.22934114]
[1773223188069,11.77177375,84.949,84.92,3.41501462]
[1773223188267,3.41501462,84.95,84.92,3.41501462]
[1773223188451,3.41501462,84.95,84.91,3.41501462]
[1773223188854,11.77329346,84.938,84.91,3.41501462]
[1773223189068,3.41501462,84.95,84.92,3.41501462]
[1773223189670,11.77315485,84.939,84.91,3.41501462]
[1773223191860,11.77315485,84.939,84.911,11.77703713]
[1773223192753,11.77229256,84.946,84.92,3.41501462]
[1773223192973,11.77267234,84.943,84.921,11.77565031]
[1773223193853,11.97311008,84.94,84.92,3.41501462]
[1773223194166,11.97311008,84.94,84.917,11.77615945]
[1773223195680,0.2,84.94,84.92,3.41501462]
[1773223196474,0.2,84.94,84.91,3.41501462]
[1773223196980,0.2,84.94,84.92,3.41501462]
[1773223197286,0.2,84.94,84.901,29.4457689]
[1773223197287,3.41501462,84.93,84.893,41.22836982]
[1773223197468,11.97313602,84.94,84.901,11.77842428]
[1773223197469,15.38815064,84.94,84.901,11.77842428]
[1773223197674,44.82069125,84.94,84.901,41.22448498]
[1773223198167,44.82069125,84.94,84.901,11.77842428]
[1773223199278,44.82069125,84.94,84.91,3.41501462]
[1773223200071,44.82069125,84.94,84.911,11.77703713]
[1773223200477,44.82069125,84.94,84.91,3.41501462]
[1773223200878,44.82069125,84.94,84.911,11.77703713]
[1773223201179,0.2,84.94,84.911,11.77703713]
[1773223201366,11.77315485,84.939,84.92,3.41501462]
[1773223201784,0.2,84.94,84.93,3.41501462]
[1773223201971,0.2,84.94,84.92,3.41501462]
[1773223202287,0.2,84.94,84.873,47.12905551]
[1773223202288,3.41501462,84.93,84.89,3.41501462]
[1773223202465,3.41501462,84.93,84.9,3.41501462]
[1773223202669,0.2,84.94,84.92,3.41501462]
[1773223203686,0.2,84.94,84.897,2.12]
[1773223203687,0.2,84.94,84.93,3.41501462]
[1773223204380,11.77038336,84.959,84.931,11.77426381]
[1773223206880,41.19634176,84.959,84.921,11.77565031]
[1773223207201,0.2,84.96,84.94,3.41501462]
[1773223207493,0.2,84.96,84.95,3.41501462]
[1773223208580,29.41955853,84.978,84.95,3.41501462]
[1773223208776,11.76789013,84.977,84.95,3.41501462]
[1773223210189,29.41972533,84.977,84.94,3.41501462]
[1773223210894,29.41972533,84.977,84.95,3.41501462]
[1773223211299,11.76678237,84.985,84.931,41.20992334]
[1773223211479,41.1837383,84.985,84.95,3.41501462]
[1773223213490,3.41501462,84.98,84.95,3.41501462]
[1773223214010,3.41501462,84.97,84.932,11.77412518]
[1773223214178,33.77818554,84.969,84.94,3.41501462]
[1773223215798,11.76913661,84.968,84.94,3.41501462]
[1773223216001,11.76913661,84.968,84.94,15.1879075]
[1773223217205,41.19197815,84.968,84.94,3.41501462]
[1773223217813,41.19197815,84.968,84.941,11.77287764]
[1773223218707,41.19197815,84.968,84.94,3.41501462]
[1773223218901,41.19197815,84.968,84.93,3.41501462]
[1773223219296,3.41501462,84.96,84.921,11.77565031]
[1773223220201,3.41501462,84.95,84.92,3.41501462]
[1773223220389,3.41501462,84.95,84.91,3.41501462]
[1773223221207,3.41501462,84.95,84.92,3.41501462]
[1773223221389,3.41501462,84.95,84.9,11.77856301]
[1773223221390,3.41501462,84.95,84.91,3.41501462]
[1773223222604,3.41501462,84.94,84.91,3.41501462]
[1773223223790,11.77315485,84.939,84.911,11.77703713]
[1773223225986,11.77315485,84.939,84.91,3.41501462]
[1773223227693,11.77315485,84.939,84.89,40.4587588]
[1773223227694,11.76885959,84.97,84.92,3.41501462]
[1773223227893,35.38,84.998,84.911,11.77703713]
[1773223227894,11.77176894,84.949,84.911,11.77703713]
[1773223228193,3.41501462,85.0,84.911,11.77703713]
[1773223228194,41.19100858,84.97,84.93,3.41501462]
[1773223228398,44.6060232,84.97,84.93,3.41501462]
[1773223228704,15.18387421,84.97,84.94,3.41501462]
[1773223230206,3.41501462,84.98,84.941,11.77287764]
[1773223230507,3.41501462,84.97,84.941,11.77287764]
[1773223231592,6.65383402,84.992,84.93,3.41501462]
[1773223231593,3.41501462,84.96,84.93,3.41501462]
[1773223232109,3.41501462,84.95,84.92,3.41501462]
[1773223232315,11.77176894,84.949,84.92,3.41501462]
[1773223232493,11.77176894,84.949,84.91,3.41501462]
[1773223232900,11.77176894,84.949,84.92,3.41501462]
[1773223233612,58.84488937,84.97,84.92,3.41501462]
[1773223233613,11.77066045,84.957,84.92,3.41501462]
[1773223234014,3.41501462,84.95,84.92,3.41501462]
[1773223234209,3.41501462,84.96,84.921,11.77565031]
[1773223236693,11.77038336,84.959,84.921,41.21477608]
[1773223237122,41.19634176,84.959,84.921,41.21477608]
[1773223237406,41.19634176,84.959,84.93,3.41501462]
[1773223237611,41.19634176,84.959,84.93,3.40774441]
[1773223238713,41.19634176,84.959,84.921,11.77565031]
[1773223238915,3.40774441,84.95,84.92,3.40774441]
[1773223239108,41.19634176,84.959,84.921,11.77565031]
[1773223243306,11.77038336,84.959,84.93,3.40774441]
[1773223245421,11.77038336,84.959,84.931,11.77426381]
[1773223246428,11.77038336,84.959,84.904,2.1]
[1773223246429,41.19634176,84.959,84.92,3.40774441]
[1773223248620,41.19634176,84.959,84.92,15.18350424]
[1773223253113,3.40774441,84.94,84.9,3.40774441]
[1773223254627,3.40774441,84.92,84.867,41.24100061]
[1773223254831,3.40774441,84.92,84.88,3.40774441]
[1773223255217,11.77592764,84.919,84.881,11.78119956]
[1773223255528,3.40774441,84.91,84.88,15.1890391]
[1773223258430,11.77731453,84.909,84.88,15.1890391]
[1773223259231,11.77731453,84.909,84.88,3.40774441]
[1773223259434,11.77731453,84.909,84.881,11.78119956]
[1773223259635,11.77682424,84.913,84.881,11.78119956]
[1773223260939,11.77592764,84.919,84.881,41.23419846]
[1773223262433,3.40774441,84.91,84.881,11.78119956]
[1773223263218,11.77731453,84.909,84.881,11.78119956]
[1773223264935,3.40774441,84.92,84.881,41.23419846]
[1773223265336,3.40774441,84.91,84.881,41.23419846]
[1773223265635,3.40774441,84.9,84.873,11.78231003]
[1773223266239,41.21574676,84.919,84.873,11.78231003]
[1773223266441,3.40774441,84.91,84.873,11.78231003]
[1773223267335,11.77606632,84.918,84.88,3.40774441]
[1773223269431,11.77606632,84.918,84.89,3.40774441]
[1773223270936,3.40774441,84.92,84.868,3.69383402]
[1773223271238,3.40774441,84.92,84.89,3.40774441]
[1773223271843,3.40774441,84.92,84.88,3.40774441]
[1773223273323,11.77592764,84.919,84.881,41.23419846]
[1773223273528,11.77592764,84.919,84.89,3.40774441]
[1773223274135,33.77818554,84.928,84.9,3.40774441]
[1773223274324,45.55290777,84.928,84.9,3.40774441]
[1773223274752,45.55290777,84.928,84.881,41.23419846]
[1773223274753,3.40774441,84.92,84.881,11.78119956]
[1773223274939,74.98960709,84.928,84.87,3.40774441]
[1773223274940,3.40774441,84.91,84.87,3.40774441]
[1773223275144,3.40774441,84.91,84.88,3.40774441]
[1773223275531,11.77731453,84.909,84.881,11.78119956]
[1773223276553,11.77592764,84.919,84.881,11.78119956]
[1773223276933,3.40774441,84.93,84.89,3.40774441]
[1773223277128,41.20652711,84.938,84.9,3.40774441]
[1773223277347,11.77329346,84.938,84.91,3.40774441]
[1773223277656,41.20137536,84.949,84.911,11.77703713]
[1773223278950,11.77066045,84.957,84.911,41.21962996]
[1773223279157,11.77066045,84.957,84.93,3.40774441]
[1773223279853,41.19731157,84.957,84.911,11.77703713]
[1773223280050,41.19731157,84.957,84.92,3.40774441]
[1773223280441,11.77066045,84.957,84.92,3.40774441]
[1773223280841,58.84081055,84.976,84.93,3.40774441]
[1773223281040,3.40774441,84.96,84.93,3.40774441]
[1773223281555,3.40774441,84.96,84.92,3.40774441]
[1773223282254,11.77038336,84.959,84.93,3.40774441]
[1773223283353,3.40774441,84.96,84.93,3.40774441]
[1773223283537,11.76977619,84.964,84.94,3.40774441]
[1773223283942,11.76977619,84.964,84.93,3.40774441]
[1773223284137,11.76977619,84.964,84.902,3.69383402]
[1773223284138,41.19400292,84.964,84.902,3.69383402]
[1773223284458,41.19400292,84.964,84.899,88.34026312]
[1773223284459,11.77038336,84.959,84.92,3.40774441]
[1773223288658,41.19634176,84.959,84.921,11.77565031]
[1773223289776,3.40774441,84.95,84.917,11.77620053]
[1773223289964,3.40774441,84.95,84.92,3.40774441]
[1773223290750,11.77176894,84.949,84.92,3.40774441]
[1773223291158,11.77176894,84.949,84.917,11.77620053]
[1773223291353,11.77176894,84.949,84.92,3.40774441]
[1773223292364,11.77176894,84.949,84.89,3.69383402]
[1773223292365,3.40774441,84.94,84.9,3.40774441]
[1773223293463,29.42659819,84.958,84.92,3.40774441]
[1773223293657,3.40774441,84.95,84.91,3.40774441]
[1773223293850,3.40774441,84.94,84.91,3.40774441]
[1773223295071,3.40774441,84.95,84.91,3.40774441]
[1773223296462,11.77176894,84.949,84.911,41.21962996]
[1773223296668,11.77176894,84.949,84.92,3.40774441]
[1773223297050,41.20119129,84.949,84.911,11.77703713]
[1773223297956,11.77176894,84.949,84.911,41.21962996]
[1773223299150,3.40774441,84.93,84.898,11.77884049]
[1773223299355,3.40774441,84.94,84.9,3.40774441]
[1773223299555,3.40946635,84.94,84.9,3.40946635]
[1773223299756,33.77818554,84.948,84.91,3.40946635]
[1773223300356,3.40946635,84.94,84.91,3.40946635]
[1773223300651,3.40946635,84.94,84.9,3.40946635]
[1773223301548,3.40946635,84.94,84.901,11.77842428]
[1773223301549,11.77315485,84.939,84.901,11.77842428]
[1773223302374,3.40946635,84.93,84.901,11.77842428]
[1773223303977,74.98422752,84.939,84.901,11.77842428]
[1773223304177,41.20604198,84.939,84.901,11.77842428]
[1773223305583,41.20604198,84.939,84.901,11.27842428]
[1773223305970,11.77454108,84.929,84.89,3.40946635]
[1773223306475,41.21089379,84.929,84.9,3.40946635]
[1773223306981,11.77454108,84.929,84.9,3.40946635]
[1773223308189,11.77454108,84.929,84.891,11.77981175]
[1773223308363,3.40946635,84.92,84.891,11.77981175]
[1773223309160,11.77592764,84.919,84.87,41.23954282]
[1773223309364,3.40946635,84.9,84.87,11.78272652]
[1773223309769,3.40946635,84.9,84.87,15.19219287]
[1773223310170,3.40946635,84.9,84.87,44.64900917]
[1773223310878,41.21574676,84.919,84.88,3.40946635]
[1773223310879,3.40946635,84.91,84.88,3.40946635]
[1773223311183,11.77592764,84.919,84.88,3.40946635]
[1773223311485,3.40946635,84.91,84.881,11.78119956]
[1773223313592,11.77731453,84.909,84.881,11.78119956]
[1773223316393,3.40946635,84.9,84.871,11.78258769]
[1773223317482,41.22060087,84.909,84.871,11.78258769]
[1773223317685,11.77731453,84.909,84.871,41.23905691]
[1773223320699,41.22060087,84.909,84.871,41.23905691]
[1773223322594,15.18674598,84.91,84.88,3.40946635]
[1773223322794,15.18674598,84.91,84.871,41.23905691]
[1773223323796,15.18674598,84.91,84.881,11.78119956]
[1773223323989,11.77727963,84.91,84.881,11.78119956]
[1773223324184,33.77818554,84.918,84.881,41.23419846]
[1773223324693,33.77818554,84.918,84.89,3.40946635]
[1773223324897,45.55429501,84.918,84.881,41.23419846]
[1773223326002,33.77818554,84.918,84.881,41.23419846]
[1773223326310,33.77818554,84.918,84.9,3.40946635]
[1773223326698,33.77818554,84.918,84.881,41.23419846]
[1773223326699,1.06097354,84.917,84.89,3.40946635]
[1773223326896,1.06097354,84.917,84.891,0.04364002]
[1773223327792,1.06097354,84.917,84.892,0.04334303]
[1773223327990,33.77818554,84.918,84.892,0.04334303]
[1773223328194,33.77818554,84.918,84.901,0.04334303]
[1773223329200,34.83108583,84.918,84.901,0.04334303]
[1773223329611,1.05290029,84.917,84.896,0.04327019]
[1773223334693,33.77818554,84.918,84.896,0.04327019]
[1773223335105,29.43347803,84.938,84.891,41.22934114]
[1773223335106,1.05290029,84.929,84.91,3.40946635]
[1773223335314,1.05290029,84.936,84.911,0.04285079]
[1773223336915,1.05290029,84.934,84.911,11.81988792]
[1773223339516,1.05290029,84.934,84.912,0.04256159]
[1773223339700,1.05290029,84.948,84.921,0.04249326]
[1773223340419,33.77818554,84.949,84.921,0.04249326]
[1773223340994,1.05290029,84.955,84.921,0.04249326]
[1773223341914,1.05290029,84.953,84.922,0.04229802]
[1773223345217,1.05290029,84.953,84.931,11.77426381]
[1773223345513,12.82354248,84.958,84.932,0.04210366]
[1773223345716,37.18765189,84.97,84.95,3.40946635]
[1773223345717,1.05290029,84.969,84.95,3.40946635]
[1773223345901,1.05290029,84.969,84.943,0.04210366]
[1773223346421,1.05290029,84.969,84.95,3.40946635]
[1773223346625,1.05290029,84.977,84.951,0.04205459]
[1773223347208,1.05290029,84.997,84.971,11.81071118]
[1773223347418,1.05290029,84.997,84.972,0.04199009]
[1773223347608,1.05290029,85.008,84.972,0.04199009]
[1773223348003,1.05290029,85.008,84.98,3.40946635]
[1773223348615,1.05290029,85.008,84.971,41.23244617]
[1773223348818,1.05290029,85.006,84.971,41.23244617]
[1773223349028,1.05290029,84.999,84.971,11.76872109]
[1773223351328,1.05290029,84.999,84.972,0.04174646]
[1773223352427,1.05290029,84.999,84.98,3.40946635]
[1773223352729,1.05290029,84.999,84.972,0.04174646]
[1773223354014,1.05290029,85.009,84.981,0.04155702]
[1773223354213,1.05290029,85.009,84.99,3.40946635]
[1773223354439,8.41848729,85.018,85.0,3.40946635]
[1773223354731,0.2,85.03,85.01,3.40946635]
[1773223354931,1.05290029,85.028,85.0,3.40946635]
[1773223356715,1.05290029,85.028,84.971,205.95261911]
[1773223356716,1.05290029,85.019,84.98,3.40946635]
[1773223357139,41.16339515,85.027,84.969,11.76892654]
[1773223357140,1.05290029,84.999,84.969,11.76892654]
[1773223357349,1.05290029,84.999,84.97,3.40946635]
[1773223357525,1.05290029,84.999,84.96,3.40946635]
[1773223357719,1.05290029,84.999,84.97,3.40946635]
[1773223358431,1.05290029,84.989,84.96,3.40946635]
[1773223358731,1.05290029,84.987,84.961,11.77010628]
[1773223361642,1.05290029,84.987,84.96,3.40474083]
[1773223363339,1.05290029,84.987,84.961,11.77010628]
[1773223364232,1.05290029,84.995,84.97,3.40474083]
[1773223364432,1.05290029,84.995,84.971,0.04089772]
[1773223364751,1.05290029,84.995,84.97,3.40474083]
[1773223365052,1.05290029,84.993,84.965,0.04089772]
[1773223369165,1.05290029,84.993,84.97,3.40474083]
[1773223369456,11.76581325,84.992,84.97,3.40474083]
[1773223369639,1.05290029,84.991,84.965,0.04089772]
[1773223369836,1.05290029,84.991,84.96,3.40474083]
[1773223370449,1.06911944,84.989,84.961,11.77010628]
[1773223372445,1.06911944,84.987,84.961,11.77010628]
[1773223373556,1.06911944,84.985,84.954,0.0403213]
[1773223373852,1.06911944,84.985,84.96,3.40474083]
[1773223374161,1.06911944,84.985,84.96,3.44500736]
[1773223377053,1.06911944,84.985,84.961,11.77010628]
[1773223377444,1.06911944,84.985,84.961,11.81014819]
[1773223379654,1.06911944,84.985,84.961,11.77010628]
[1773223380344,1.06911944,84.985,84.962,0.03989565]
[1773223382147,1.05290029,84.984,84.961,11.77010628]
[1773223384664,1.05290029,84.984,84.953,29.42792657]
[1773223385065,1.05290029,84.984,84.953,29.46758489]
[1773223385267,1.05290029,84.984,84.954,0.03965832]
[1773223385466,1.05290029,84.984,84.96,3.40474083]
[1773223385764,1.05290029,84.984,84.961,11.77010628]
[1773223386146,1.05290029,84.984,84.962,0.03961342]
[1773223386349,1.05290029,84.999,84.971,0.03961342]
[1773223386545,1.05290029,84.999,84.97,3.40474083]
[1773223386546,1.05290029,85.008,84.981,0.03961342]
[1773223386959,1.05290029,84.989,84.961,41.19537199]
[1773223388159,1.05290029,84.989,84.961,41.23489091]
[1773223389651,1.05290029,84.987,84.961,11.8096252]
[1773223391979,1.05290029,84.987,84.97,3.40474083]
[1773223392160,3.40474083,85.02,84.981,0.96749949]
[1773223392353,11.76161699,85.023,84.991,0.96749949]
[1773223393753,11.76069341,85.029,84.992,11.76581325]
[1773223393958,11.76069341,85.029,84.993,0.96749949]
[1773223394158,1.01444419,85.028,84.993,0.96749949]
[1773223396059,1.01444419,85.026,84.995,0.96749949]
[1773223396261,1.01444419,85.026,85.001,0.96749949]
[1773223397476,1.01444419,85.026,85.003,0.96749949]
[1773223397680,0.2,85.04,85.021,0.96749949]
[1773223397861,0.2,85.04,85.03,3.40474083]
[1773223398677,0.2,85.04,85.027,0.96749949]
[1773223398871,0.2,85.04,85.021,0.96749949]
[1773223399262,1.21444419,85.04,85.02,3.40474083]
[1773223399780,1.04103999,85.038,85.02,3.40474083]
[1773223400277,1.04103999,85.038,85.021,11.76180002]
[1773223400662,1.04103999,85.038,85.02,3.40474083]
[1773223400860,1.04103999,85.038,85.02,15.16657823]
[1773223401169,1.04103999,85.038,85.02,3.40474083]
[1773223401373,1.04103999,85.038,85.021,11.76180002]
[1773223401666,1.04103999,85.038,85.02,3.40474083]
[1773223402475,1.04103999,85.038,85.015,11.76255667]
[1773223403681,1.04103999,85.038,84.999,29.41193132]
[1773223403682,1.04103999,85.035,85.0,4.43142223]
[1773223404188,1.04103999,85.035,85.001,11.76456747]
[1773223404685,1.04103999,85.035,85.001,12.79124887]
[1773223405268,1.04103999,85.029,85.0,3.40474083]
[1773223405684,1.04103999,85.027,85.0,3.40474083]
[1773223407289,1.04103999,85.027,85.002,1.0266814]
[1773223407592,11.76110836,85.026,85.002,1.0266814]
[1773223407770,1.04103999,85.025,85.002,1.0266814]
[1773223408089,1.04103999,85.025,85.001,11.76456747]
[1773223408292,1.04103999,85.025,85.001,12.79124887]
[1773223408591,1.04103999,85.025,85.002,1.0266814]
[1773223409900,1.04103999,85.025,85.003,12.79097207]
[1773223410190,1.04103999,85.025,85.004,1.0266814]
[1773223411397,1.04103999,85.025,85.005,11.76401388]
[1773223412971,1.04103999,85.025,85.006,1.0266814]
[1773223413486,1.04103999,85.034,85.011,1.0266814]
[1773223414694,0.2,85.04,85.021,1.0266814]
[1773223415083,1.24103999,85.04,85.021,1.0266814]
[1773223415284,1.24103999,85.04,85.013,1.0266814]
[1773223416801,1.24103999,85.04,85.015,1.0266814]
[1773223417420,0.2,85.04,85.021,1.0266814]
[1773223417701,0.2,85.04,85.03,4.43142223]
[1773223418686,0.2,85.04,85.032,11.76027848]
[1773223419201,0.2,85.04,85.001,29.41141868]
[1773223419409,0.2,85.04,85.011,1.0266814]
[1773223419410,1.24103999,85.04,85.011,1.0266814]
[1773223419785,1.04103999,85.039,85.011,1.0266814]
[1773223420180,1.04103999,85.039,85.01,3.40474083]
[1773223420181,1.04103999,85.038,85.01,3.40474083]
[1773223420389,1.04103999,85.038,85.001,11.76456747]
[1773223421216,1.04103999,85.029,85.001,11.76456747]
[1773223422214,1.04103999,85.029,85.001,12.79124887]
[1773223422712,1.04103999,85.029,85.002,1.0266814]
[1773223423210,1.04103999,85.029,85.01,3.40192882]
[1773223423394,1.04103999,85.036,85.012,1.0266814]
[1773223423711,0.2,85.04,85.012,1.0266814]
[1773223423900,0.2,85.04,85.021,1.0266814]
[1773223425714,0.2,85.05,85.031,1.0266814]
[1773223427000,11.75676607,85.058,85.041,1.0266814]
[1773223427313,11.75654545,85.059,85.041,1.0266814]
[1773223427520,1.04103999,85.058,85.04,3.40192882]
[1773223428221,1.04103999,85.058,85.033,1.0266814]
[1773223428405,1.04103999,85.058,85.04,3.40192882]
[1773223429220,1.04103999,85.056,85.033,11.76004937]
[1773223430615,1.04103999,85.056,85.04,3.40192882]
[1773223431425,1.04103999,85.056,85.037,11.75953528]
[1773223431920,0.2,85.06,85.02,3.40192882]
[1773223431921,1.06851859,85.054,85.02,3.40192882]
[1773223432099,1.06851859,85.054,85.021,11.76180002]
[1773223432306,1.06851859,85.054,85.03,3.40192882]
[1773223433219,1.06851859,85.052,85.021,11.76180002]
[1773223434124,1.06851859,85.052,85.03,3.40192882]
[1773223434321,1.06851859,85.052,85.031,0.99728102]
[1773223436028,1.06851859,85.052,85.032,11.76027848]
[1773223438624,1.02924299,85.05,85.032,11.76027848]
[1773223438818,1.02924299,85.05,85.03,3.40192882]
[1773223439020,1.02924299,85.049,85.012,0.98674905]
[1773223439426,1.02924299,85.049,85.014,0.98674905]
[1773223439636,1.02924299,85.049,85.02,3.40192882]
[1773223439944,1.02924299,85.049,85.021,0.98674905]
[1773223441134,1.02924299,85.047,85.02,3.40192882]
[1773223441433,1.02924299,85.047,85.021,11.76180002]
[1773223441813,1.02924299,85.047,85.02,3.40192882]
[1773223442821,1.02924299,85.045,85.021,11.76180002]
[1773223445445,11.75861906,85.044,85.02,3.40192882]
[1773223445744,1.02924299,85.043,85.02,3.40192882]
[1773223445932,1.02924299,85.043,85.02,15.16373363]
[1773223447627,11.7588956,85.042,85.02,16.15048268]
[1773223447844,1.02924299,85.041,85.02,16.15048268]
[1773223448046,1.02924299,85.041,85.02,15.16373363]
[1773223448941,1.02924299,85.041,85.016,11.76246691]
[1773223449945,1.02924299,85.039,85.01,3.40192882]
[1773223450244,1.02924299,85.039,85.007,11.76372543]
[1773223450634,1.02924299,85.029,84.994,11.76553639]
[1773223451463,1.02924299,85.029,84.994,12.75228544]
[1773223451964,1.02924299,85.027,84.994,12.75228544]
[1773223452458,1.02924299,85.027,84.995,0.98674905]
[1773223456269,1.02924299,85.025,84.996,11.76525954]
[1773223456467,1.02924299,85.025,84.996,12.75200859]
[1773223456777,1.02924299,85.025,84.997,0.98674905]
[1773223456952,1.02924299,85.019,84.996,11.76525954]
[1773223458269,1.02924299,85.017,84.996,11.76525954]
[1773223458664,1.02924299,85.017,84.997,0.98674905]
[1773223460449,1.02924299,85.017,84.984,29.41714667]
[1773223460450,1.02924299,85.017,84.992,1.04393983]
[1773223463171,1.02924299,85.017,84.981,2.1]
[1773223463172,1.03984985,85.038,85.011,1.04393983]
[1773223463385,1.03984985,85.038,85.02,4.44586865]
[1773223463556,1.03984985,85.038,85.021,1.04393983]
[1773223463754,11.75858174,85.045,85.021,1.04393983]
[1773223463967,11.75803631,85.049,85.03,4.44586865]
[1773223464359,11.75803631,85.049,85.031,1.04393983]
[1773223464555,1.03984985,85.052,85.031,1.04393983]
[1773223464761,0.2,85.06,85.041,1.04393983]
[1773223464961,0.2,85.06,85.05,15.15967319]
[1773223465264,0.2,85.06,85.05,16.20361302]
[1773223465455,0.2,85.07,85.051,1.04393983]
[1773223466067,1.23984985,85.07,85.051,1.04393983]
[1773223466658,1.03984985,85.068,85.05,15.15967319]
[1773223468777,1.03984985,85.068,85.05,3.40192882]
[1773223468979,0.2,85.07,85.052,1.04393983]
[1773223469360,0.2,85.07,85.053,11.75737481]
[1773223470160,0.2,85.07,85.06,3.40192882]
[1773223471579,1.23984985,85.07,85.053,11.75737481]
[1773223472977,1.23984985,85.07,85.05,3.40192882]
[1773223473364,1.23984985,85.07,85.051,11.75765129]
[1773223473684,0.2,85.07,85.052,1.04393983]
[1773223474174,1.03984985,85.076,85.06,3.40192882]
[1773223475679,1.03984985,85.076,85.061,11.75626903]
[1773223477968,1.03984985,85.076,85.06,3.40192882]
[1773223478169,1.03984985,85.076,85.06,15.15833565]
[1773223479168,1.03984985,85.076,85.054,11.75723657]
[1773223479662,1.03984985,85.076,85.06,3.40192882]
[1773223482083,12.793202,85.083,85.062,1.04393983]
[1773223482469,1.03984985,85.082,85.062,1.04393983]
[1773223483689,1.03984985,85.082,85.063,11.75599261]
[1773223484087,1.03984985,85.08,85.062,1.04393983]
[1773223484593,1.03984985,85.08,85.061,11.75625923]
[1773223486296,1.03984985,85.08,85.057,1.04393983]
[1773223486297,1.03984985,85.078,85.05,3.39701585]
[1773223486789,1.03984985,85.069,85.036,11.75969773]
[1773223486980,1.03984985,85.069,85.04,3.39701585]
[1773223487385,1.03984985,85.069,85.05,3.39701585]
[1773223487994,1.03984985,85.069,85.04,3.39701585]
[1773223488384,1.03984985,85.067,85.041,11.75903387]
[1773223489490,1.03984985,85.067,85.041,12.8029737]
[1773223489794,1.03984985,85.067,85.042,1.05667843]
[1773223491199,11.75557802,85.066,85.042,1.05667843]
[1773223491378,1.00608811,85.065,85.042,1.05667843]
[1773223493096,1.00608811,85.065,85.044,1.05667843]
[1773223494293,1.00608811,85.063,85.043,11.75875733]
[1773223497296,1.05057347,85.061,85.043,11.75875733]